[Event "*** Titled Tuesday Blitz"]
[Site "Chess.com"]
[Date "2019.04.02"]
[Round "5"]
[White "rasmussvane"]
[Black "Fighterman91"]
[Result "1-0"]
[WhiteElo "2782"]
[BlackElo "2591"]
[TimeControl "180+2"]
[EndTime "15:03:10 PDT"]
[Termination "rasmussvane won by resignation"]

1. Nf3 {[%clk 0:03:01.9]} 1... Nf6 {[%clk 0:03:00.3]} 2. c4 {[%clk 0:03:02.8]}
2... g6 {[%clk 0:03:00.8]} 3. Nc3 {[%clk 0:03:02.9]} 3... d5 {[%clk 0:02:58.1]}
4. cxd5 {[%clk 0:03:04.8]} 4... Nxd5 {[%clk 0:02:59.1]} 5. h4 {[%clk 0:03:06.4]}
5... Bg7 {[%clk 0:02:53.8]} 6. e4 {[%clk 0:03:07.3]} 6... Nxc3 {[%clk
0:02:49.3]} 7. dxc3 {[%clk 0:03:09.2]} 7... Qxd1+ {[%clk 0:02:50.3]} 8. Kxd1
{[%clk 0:03:11.1]} 8... Nd7 {[%clk 0:02:49.1]} 9. Nd4 {[%clk 0:03:10.2]} 9... c6
{[%clk 0:02:26.6]} 10. Kc2 {[%clk 0:03:09.3]} 10... Nc5 {[%clk 0:02:26.6]} 11.
f3 {[%clk 0:03:10.3]} 11... Bd7 {[%clk 0:02:24.4]} 12. Be3 {[%clk 0:03:08.9]}
12... Ne6 {[%clk 0:02:15.6]} 13. Nb3 {[%clk 0:03:00.7]} 13... Be5 {[%clk
0:02:09.7]} 14. a4 {[%clk 0:02:59.6]} 14... h5 {[%clk 0:02:07.7]} 15. a5 {[%clk
0:02:57.2]} 15... O-O {[%clk 0:01:56.1]} 16. Bc4 {[%clk 0:02:57.9]} 16... a6
{[%clk 0:01:33.3]} 17. Rad1 {[%clk 0:02:57.8]} 17... Rad8 {[%clk 0:01:24.7]} 18.
Bb6 {[%clk 0:02:55.5]} 18... Nc7 {[%clk 0:01:25.1]} 19. Nc5 {[%clk 0:02:50.6]}
19... Bc8 {[%clk 0:01:25.5]} 20. Nd3 {[%clk 0:02:51.7]} 20... Rxd3 {[%clk
0:01:08.3]} 21. Rxd3 {[%clk 0:02:52.2]} 21... Ne6 {[%clk 0:01:07.9]} 22. Be3
{[%clk 0:02:38.2]} 22... Kg7 {[%clk 0:01:01.5]} 23. Rd2 {[%clk 0:02:38.8]} 23...
Bc7 {[%clk 0:00:50.5]} 24. b4 {[%clk 0:02:37.1]} 24... f6 {[%clk 0:00:45.5]} 25.
Rhd1 {[%clk 0:02:34.2]} 25... Bg3 {[%clk 0:00:44.2]} 26. Rd7 {[%clk 0:02:14.8]}
26... Bxd7 {[%clk 0:00:34.9]} 27. Rxd7 {[%clk 0:02:16.7]} 27... Nf4 {[%clk
0:00:13.7]} 28. Rxe7+ {[%clk 0:02:16.3]} 28... Kh8 {[%clk 0:00:15.1]} 29. Rxb7
{[%clk 0:02:15.6]} 29... Nxg2 {[%clk 0:00:15.1]} 30. Bh6 {[%clk 0:02:16.8]}
30... Rb8 {[%clk 0:00:14.6]} 31. Bg7+ {[%clk 0:01:59.1]} 31... Kh7 {[%clk
0:00:15.4]} 32. Rxb8 {[%clk 0:02:00.7]} 32... Bxb8 {[%clk 0:00:16.2]} 33. Bxf6
{[%clk 0:02:02.3]} 33... Ne1+ {[%clk 0:00:14.2]} 34. Kd1 {[%clk 0:02:00.3]}
34... Nxf3 {[%clk 0:00:16.1]} 35. Bxa6 {[%clk 0:02:01.5]} 35... g5 {[%clk
0:00:16.2]} 36. Be2 {[%clk 0:01:57]} 36... Kg6 {[%clk 0:00:10.2]} 37. Bxf3
{[%clk 0:01:25.4]} 37... Kxf6 {[%clk 0:00:11]} 38. hxg5+ {[%clk 0:01:26.6]}
38... Kxg5 {[%clk 0:00:12.5]} 39. e5 {[%clk 0:01:27.8]} 39... Bxe5 {[%clk
0:00:03.3]} 40. Kc2 {[%clk 0:01:29.2]} 40... h4 {[%clk 0:00:04]} 41. Bxc6 {[%clk
0:01:30]} 41... Kf5 {[%clk 0:00:04.8]} 42. b5 {[%clk 0:01:26.1]} 42... Ke6
{[%clk 0:00:05]} 43. a6 {[%clk 0:01:25]} 1-0

[Event "*** Titled Tuesday Blitz"]
[Site "Chess.com"]
[Date "2019.04.02"]
[Round "5"]
[White "NM2019"]
[Black "NemtsevIgor"]
[Result "0-1"]
[WhiteElo "2167"]
[BlackElo "2322"]
[TimeControl "180+2"]
[EndTime "15:03:15 PDT"]
[Termination "NemtsevIgor won on time"]

1. c4 {[%clk 0:03:01.6]} 1... c6 {[%clk 0:03:00.7]} 2. Nf3 {[%clk 0:03:01.7]}
2... d6 {[%clk 0:03:01.8]} 3. g3 {[%clk 0:03:02.1]} 3... Nd7 {[%clk 0:03:02.3]}
4. Bg2 {[%clk 0:03:03.4]} 4... h6 {[%clk 0:03:03.8]} 5. O-O {[%clk 0:03:04.7]}
5... g5 {[%clk 0:03:05.1]} 6. h4 {[%clk 0:03:01.6]} 6... Bg7 {[%clk 0:03:04.7]}
7. hxg5 {[%clk 0:02:58.6]} 7... hxg5 {[%clk 0:03:05.7]} 8. Nxg5 {[%clk
0:02:58.1]} 8... Qa5 {[%clk 0:03:06]} 9. d4 {[%clk 0:02:55.4]} 9... Nf8 {[%clk
0:02:58.8]} 10. d5 {[%clk 0:02:42.6]} 10... c5 {[%clk 0:02:50.2]} 11. Bd2 {[%clk
0:02:18.4]} 11... Qb6 {[%clk 0:02:50.7]} 12. Bc3 {[%clk 0:02:17.2]} 12... f6
{[%clk 0:02:46]} 13. Nf3 {[%clk 0:02:14.4]} 13... Ng6 {[%clk 0:02:45.6]} 14.
Nbd2 {[%clk 0:02:05.3]} 14... Ne5 {[%clk 0:02:45.9]} 15. Nxe5 {[%clk 0:02:03]}
15... fxe5 {[%clk 0:02:46.9]} 16. f4 {[%clk 0:01:51.7]} 16... Nh6 {[%clk
0:02:30.8]} 17. fxe5 {[%clk 0:01:50.4]} 17... Ng4 {[%clk 0:02:30.7]} 18. e4
{[%clk 0:01:25.1]} 18... Bxe5 {[%clk 0:02:17.6]} 19. Qf3 {[%clk 0:01:14.5]}
19... Bd7 {[%clk 0:01:58.5]} 20. Qf7+ {[%clk 0:01:12.5]} 20... Kd8 {[%clk
0:01:59.7]} 21. Nf3 {[%clk 0:00:53.4]} 21... Bxc3 {[%clk 0:01:48.4]} 22. bxc3
{[%clk 0:00:54.4]} 22... Qb2 {[%clk 0:01:45.6]} 23. Qg7 {[%clk 0:00:46]} 23...
Kc7 {[%clk 0:01:41.3]} 24. Rab1 {[%clk 0:00:34.4]} 24... Qe2 {[%clk 0:01:38.8]}
25. Rbe1 {[%clk 0:00:19.8]} 25... Qxc4 {[%clk 0:01:29.3]} 26. e5 {[%clk
0:00:21]} 26... Rag8 {[%clk 0:01:19.2]} 27. exd6+ {[%clk 0:00:22]} 27... exd6
{[%clk 0:01:20.2]} 28. Qf7 {[%clk 0:00:19.9]} 28... Qxc3 {[%clk 0:01:16.8]} 29.
Re7 {[%clk 0:00:19.8]} 29... Rd8 {[%clk 0:01:14.4]} 30. Rb1 {[%clk 0:00:12]}
30... b6 {[%clk 0:01:06.8]} 31. Rbe1 {[%clk 0:00:05.1]} 31... Ne5 {[%clk
0:00:47.5]} 32. Nxe5 {[%clk 0:00:02.9]} 32... Qxe1+ {[%clk 0:00:47.9]} 0-1

[Event "*** Titled Tuesday Blitz"]
[Site "Chess.com"]
[Date "2019.04.02"]
[Round "5"]
[White "Beawuids"]
[Black "cukus"]
[Result "0-1"]
[WhiteElo "2354"]
[BlackElo "2412"]
[TimeControl "180+2"]
[EndTime "15:03:16 PDT"]
[Termination "cukus won by resignation"]

1. e4 {[%clk 0:03:01.4]} 1... e5 {[%clk 0:02:52.3]} 2. Nf3 {[%clk 0:03:00.4]}
2... Nf6 {[%clk 0:02:49.9]} 3. d4 {[%clk 0:02:53.3]} 3... Nxe4 {[%clk
0:02:47.3]} 4. Bd3 {[%clk 0:02:50.5]} 4... d5 {[%clk 0:02:46.2]} 5. dxe5 {[%clk
0:02:49.4]} 5... Be7 {[%clk 0:02:43.2]} 6. O-O {[%clk 0:02:48.7]} 6... O-O
{[%clk 0:02:42]} 7. Nbd2 {[%clk 0:02:44.2]} 7... Nc5 {[%clk 0:02:26.1]} 8. Be2
{[%clk 0:02:26.6]} 8... c6 {[%clk 0:02:26.4]} 9. Nd4 {[%clk 0:02:25.4]} 9... f6
{[%clk 0:02:15.9]} 10. N2f3 {[%clk 0:02:15.8]} 10... fxe5 {[%clk 0:02:15.6]} 11.
Nxe5 {[%clk 0:02:15.6]} 11... Nbd7 {[%clk 0:02:15.6]} 12. Nd3 {[%clk 0:02:09.6]}
12... Bd6 {[%clk 0:02:02.1]} 13. b4 {[%clk 0:01:57.5]} 13... Ne4 {[%clk
0:01:31.7]} 14. Ne6 {[%clk 0:01:52.4]} 14... Qf6 {[%clk 0:01:20.5]} 15. Nxf8
{[%clk 0:01:49.1]} 15... Qxa1 {[%clk 0:01:19.6]} 16. Ne6 {[%clk 0:01:37]} 16...
Ne5 {[%clk 0:01:11.4]} 17. Nef4 {[%clk 0:01:26.2]} 17... Nc4 {[%clk 0:01:04.2]}
18. Bg4 {[%clk 0:01:22.1]} 18... Qf6 {[%clk 0:00:35.2]} 19. Bxc8 {[%clk
0:01:03.9]} 19... Rxc8 {[%clk 0:00:37.1]} 20. Qg4 {[%clk 0:01:04.8]} 20... Rf8
{[%clk 0:00:28.3]} 21. f3 {[%clk 0:01:01.3]} 21... Nc3 {[%clk 0:00:24.2]} 22. h4
{[%clk 0:01:02.1]} 22... Ne5 {[%clk 0:00:22.5]} 23. Nxe5 {[%clk 0:00:50.7]}
23... Qxe5 {[%clk 0:00:22.3]} 24. Qe6+ {[%clk 0:00:47.2]} 24... Qxe6 {[%clk
0:00:21.1]} 25. Nxe6 {[%clk 0:00:49.1]} 25... Re8 {[%clk 0:00:21.7]} 26. Nd4
{[%clk 0:00:41.6]} 26... Bxb4 {[%clk 0:00:22.1]} 27. Kf2 {[%clk 0:00:40.5]}
27... Bc5 {[%clk 0:00:20.9]} 28. Be3 {[%clk 0:00:41.8]} 28... Nb5 {[%clk
0:00:20.2]} 29. Nf5 {[%clk 0:00:41]} 29... d4 {[%clk 0:00:20.5]} 30. Bf4 {[%clk
0:00:37.1]} 30... d3+ {[%clk 0:00:21.1]} 31. Kg3 {[%clk 0:00:36.5]} 31... dxc2
{[%clk 0:00:20.6]} 32. Rc1 {[%clk 0:00:35.9]} 32... Re2 {[%clk 0:00:19.4]} 0-1

[Event "*** Titled Tuesday Blitz"]
[Site "Chess.com"]
[Date "2019.04.02"]
[Round "5"]
[White "gmjoey1"]
[Black "Chesstrainer1"]
[Result "1-0"]
[WhiteElo "2498"]
[BlackElo "2394"]
[TimeControl "180+2"]
[EndTime "15:03:18 PDT"]
[Termination "gmjoey1 won by resignation"]

1. e4 {[%clk 0:03:01.9]} 1... c5 {[%clk 0:02:59.6]} 2. Nf3 {[%clk 0:03:01.5]}
2... e6 {[%clk 0:03:00.4]} 3. c3 {[%clk 0:03:01.5]} 3... Nf6 {[%clk 0:03:00.2]}
4. e5 {[%clk 0:03:02.1]} 4... Nd5 {[%clk 0:03:01.6]} 5. d4 {[%clk 0:03:02.7]}
5... cxd4 {[%clk 0:03:03]} 6. Bc4 {[%clk 0:03:03]} 6... Nb6 {[%clk 0:03:00.3]}
7. Bb3 {[%clk 0:03:02.7]} 7... dxc3 {[%clk 0:03:01.4]} 8. Nxc3 {[%clk
0:03:02.2]} 8... d6 {[%clk 0:03:02.3]} 9. exd6 {[%clk 0:03:02.1]} 9... Bxd6
{[%clk 0:02:55.9]} 10. Qe2 {[%clk 0:03:01]} 10... Nc6 {[%clk 0:02:49.1]} 11. O-O
{[%clk 0:02:57.4]} 11... O-O {[%clk 0:02:42.7]} 12. Rd1 {[%clk 0:02:57.2]} 12...
Qe7 {[%clk 0:02:42.4]} 13. Ne4 {[%clk 0:02:56.5]} 13... Bc7 {[%clk 0:02:37.6]}
14. Bg5 {[%clk 0:02:43.7]} 14... f6 {[%clk 0:02:34.5]} 15. Be3 {[%clk
0:02:42.6]} 15... Nd7 {[%clk 0:02:08.7]} 16. Rac1 {[%clk 0:02:38.4]} 16... Kh8
{[%clk 0:02:08.5]} 17. Nh4 {[%clk 0:02:30.9]} 17... Qf7 {[%clk 0:01:48.5]} 18.
f4 {[%clk 0:02:18.6]} 18... Re8 {[%clk 0:01:27.3]} 19. a3 {[%clk 0:02:07.2]}
19... Nf8 {[%clk 0:01:25.2]} 20. f5 {[%clk 0:02:00.4]} 20... Qe7 {[%clk
0:00:38.9]} 21. Bc5 {[%clk 0:01:47.2]} 21... Bb6 {[%clk 0:00:39]} 22. Bxb6
{[%clk 0:01:44.8]} 22... axb6 {[%clk 0:00:40.9]} 23. Nd6 {[%clk 0:01:44]} 23...
Rd8 {[%clk 0:00:35.2]} 24. Rxc6 {[%clk 0:01:13.7]} 24... bxc6 {[%clk 0:00:37.1]}
25. Nf7+ {[%clk 0:01:13.2]} 25... Qxf7 {[%clk 0:00:38.4]} 26. Rxd8 {[%clk
0:01:12]} 26... Ba6 {[%clk 0:00:17.2]} 27. Qd2 {[%clk 0:00:58.3]} 27... Bb7
{[%clk 0:00:09.3]} 28. fxe6 {[%clk 0:00:54.9]} 28... Qe7 {[%clk 0:00:07.3]} 29.
Rd6 {[%clk 0:00:48.7]} 29... Re8 {[%clk 0:00:05.9]} 30. Nf5 {[%clk 0:00:48.4]}
30... Qc7 {[%clk 0:00:06.1]} 31. h3 {[%clk 0:00:46.8]} 31... g6 {[%clk
0:00:05.7]} 32. e7 {[%clk 0:00:40.6]} 32... gxf5 {[%clk 0:00:05.6]} 33. exf8=Q+
{[%clk 0:00:41.2]} 33... Rxf8 {[%clk 0:00:07.5]} 34. Rd7 {[%clk 0:00:42.4]}
34... Qb8 {[%clk 0:00:07.1]} 35. Qh6 {[%clk 0:00:41]} 1-0

[Event "*** Titled Tuesday Blitz"]
[Site "Chess.com"]
[Date "2019.04.02"]
[Round "5"]
[White "VeraNebolsina"]
[Black "ChessicallyInclined"]
[Result "0-1"]
[WhiteElo "2407"]
[BlackElo "2525"]
[TimeControl "180+2"]
[EndTime "15:03:23 PDT"]
[Termination "ChessicallyInclined won by resignation"]

1. e4 {[%clk 0:03:01.9]} 1... d6 {[%clk 0:03:00.7]} 2. d4 {[%clk 0:02:59.9]}
2... Nf6 {[%clk 0:03:01.8]} 3. Nc3 {[%clk 0:03:00.6]} 3... g6 {[%clk 0:03:03]}
4. Nf3 {[%clk 0:02:58.5]} 4... Bg7 {[%clk 0:03:03.7]} 5. h3 {[%clk 0:02:57.1]}
5... O-O {[%clk 0:03:04.7]} 6. Be3 {[%clk 0:02:56.9]} 6... c6 {[%clk 0:03:05.3]}
7. Bd3 {[%clk 0:02:53.9]} 7... b5 {[%clk 0:03:05.3]} 8. O-O {[%clk 0:02:54.6]}
8... b4 {[%clk 0:03:05.5]} 9. Ne2 {[%clk 0:02:55.6]} 9... Nbd7 {[%clk
0:03:06.8]} 10. a3 {[%clk 0:02:54.1]} 10... bxa3 {[%clk 0:03:03.6]} 11. Rxa3
{[%clk 0:02:54.5]} 11... Qc7 {[%clk 0:03:04.6]} 12. Bd2 {[%clk 0:02:45.7]} 12...
c5 {[%clk 0:03:04.4]} 13. Ba5 {[%clk 0:02:45.6]} 13... Nb6 {[%clk 0:02:58]} 14.
Rc3 {[%clk 0:02:09.3]} 14... Nfd7 {[%clk 0:02:54.2]} 15. b4 {[%clk 0:02:05.8]}
15... Qb8 {[%clk 0:02:47.2]} 16. bxc5 {[%clk 0:02:02.9]} 16... dxc5 {[%clk
0:02:47.9]} 17. e5 {[%clk 0:02:01.8]} 17... cxd4 {[%clk 0:02:48]} 18. Nexd4
{[%clk 0:02:01.9]} 18... Nxe5 {[%clk 0:02:47.4]} 19. Nxe5 {[%clk 0:01:49.7]}
19... Qxe5 {[%clk 0:02:47.3]} 20. Nc6 {[%clk 0:01:46.8]} 20... Qd6 {[%clk
0:02:47.8]} 21. Re1 {[%clk 0:01:39]} 21... Bxc3 {[%clk 0:02:45.3]} 22. Nxe7+
{[%clk 0:01:38.2]} 22... Qxe7 {[%clk 0:02:39.6]} 23. Rxe7 {[%clk 0:01:14.1]}
23... Bxa5 {[%clk 0:02:38.8]} 24. h4 {[%clk 0:01:13.1]} 24... Bc3 {[%clk
0:02:36]} 25. h5 {[%clk 0:01:13.2]} 25... Bf6 {[%clk 0:02:34]} 26. Rc7 {[%clk
0:01:08]} 26... Be6 {[%clk 0:02:30.1]} 27. Qf3 {[%clk 0:01:05.9]} 27... Be5
{[%clk 0:02:26.7]} 28. Rc5 {[%clk 0:01:02.7]} 28... Nd7 {[%clk 0:02:24.1]} 29.
Ra5 {[%clk 0:01:00.8]} 29... Bg7 {[%clk 0:02:21.3]} 30. Be4 {[%clk 0:00:55.4]}
30... Rab8 {[%clk 0:02:17.6]} 31. Rxa7 {[%clk 0:00:56.1]} 31... Rb1+ {[%clk
0:02:17.2]} 32. Kh2 {[%clk 0:00:56.7]} 32... Ne5 {[%clk 0:02:18.6]} 33. Qa3
{[%clk 0:00:49.1]} 33... Ng4+ {[%clk 0:02:16.7]} 34. Kg3 {[%clk 0:00:49.5]}
34... Bd4 {[%clk 0:02:12.8]} 35. f3 {[%clk 0:00:45.7]} 35... Bxa7 {[%clk
0:02:00.3]} 36. fxg4 {[%clk 0:00:46]} 36... Bb8+ {[%clk 0:02:00.3]} 37. Kf2
{[%clk 0:00:44.8]} 37... Bxg4 {[%clk 0:02:00.1]} 38. h6 {[%clk 0:00:20.8]} 38...
Bf4 {[%clk 0:01:55]} 39. c4 {[%clk 0:00:17.1]} 39... Rbb8 {[%clk 0:01:52.4]} 40.
c5 {[%clk 0:00:11.3]} 40... Bxh6 {[%clk 0:01:52.3]} 41. c6 {[%clk 0:00:12.5]}
41... Rbc8 {[%clk 0:01:51.6]} 42. Qc3 {[%clk 0:00:11.7]} 42... Bg7 {[%clk
0:01:51.4]} 43. Qa5 {[%clk 0:00:12.8]} 43... Be6 {[%clk 0:01:50.5]} 44. c7
{[%clk 0:00:13]} 44... Bd4+ {[%clk 0:01:45.7]} 45. Kf3 {[%clk 0:00:13.2]} 45...
Kg7 {[%clk 0:01:47]} 46. Bb7 {[%clk 0:00:13.9]} 46... h5 {[%clk 0:01:42.5]} 47.
Bxc8 {[%clk 0:00:13.7]} 47... Rxc8 {[%clk 0:01:44.4]} 48. Kg3 {[%clk 0:00:11.5]}
48... f6 {[%clk 0:01:43.9]} 49. Kh4 {[%clk 0:00:09.9]} 49... Be5 {[%clk
0:01:43.8]} 50. g4 {[%clk 0:00:04.5]} 50... g5+ {[%clk 0:01:42.3]} 51. Kh3
{[%clk 0:00:04]} 51... hxg4+ {[%clk 0:01:43.4]} 52. Kg2 {[%clk 0:00:05.3]} 52...
Rxc7 {[%clk 0:01:44.7]} 0-1

[Event "*** Titled Tuesday Blitz"]
[Site "Chess.com"]
[Date "2019.04.02"]
[Round "5"]
[White "GameOverBro"]
[Black "Lion_DL"]
[Result "1-0"]
[WhiteElo "2511"]
[BlackElo "2457"]
[TimeControl "180+2"]
[EndTime "15:03:25 PDT"]
[Termination "GameOverBro won by checkmate"]

1. e4 {[%clk 0:03:01.9]} 1... Nc6 {[%clk 0:03:00.7]} 2. Nf3 {[%clk 0:03:01.9]}
2... d6 {[%clk 0:03:02.2]} 3. h3 {[%clk 0:03:01.6]} 3... Nf6 {[%clk 0:03:02.9]}
4. Nc3 {[%clk 0:03:02]} 4... e5 {[%clk 0:03:03.4]} 5. Bc4 {[%clk 0:02:57.6]}
5... Be7 {[%clk 0:02:59.4]} 6. O-O {[%clk 0:02:57.3]} 6... h6 {[%clk 0:02:46.1]}
7. d4 {[%clk 0:02:54.3]} 7... exd4 {[%clk 0:02:42.3]} 8. Nxd4 {[%clk 0:02:54.9]}
8... O-O {[%clk 0:02:41]} 9. Re1 {[%clk 0:02:47.5]} 9... Na5 {[%clk 0:02:39.6]}
10. Bf1 {[%clk 0:02:47.9]} 10... c5 {[%clk 0:02:39.4]} 11. Nde2 {[%clk
0:02:45.9]} 11... Nc6 {[%clk 0:02:31.1]} 12. Nf4 {[%clk 0:02:46.8]} 12... Re8
{[%clk 0:02:30.3]} 13. Ncd5 {[%clk 0:02:42.1]} 13... Nxd5 {[%clk 0:02:24.5]} 14.
Nxd5 {[%clk 0:02:42.1]} 14... Bf8 {[%clk 0:02:25.9]} 15. Bf4 {[%clk 0:02:37.3]}
15... Be6 {[%clk 0:02:24.9]} 16. c3 {[%clk 0:02:37.6]} 16... Bxd5 {[%clk
0:02:21]} 17. Qxd5 {[%clk 0:02:35.4]} 17... Qf6 {[%clk 0:02:20.1]} 18. Bg3
{[%clk 0:02:33]} 18... Rad8 {[%clk 0:02:20]} 19. Rad1 {[%clk 0:02:33.4]} 19...
Qe6 {[%clk 0:02:07.5]} 20. Bc4 {[%clk 0:02:20]} 20... Qxd5 {[%clk 0:01:57.3]}
21. Rxd5 {[%clk 0:02:18.4]} 21... a6 {[%clk 0:01:45]} 22. a4 {[%clk 0:02:00.6]}
22... Ne5 {[%clk 0:01:39.1]} 23. Bf1 {[%clk 0:01:54]} 23... g5 {[%clk
0:01:39.1]} 24. Red1 {[%clk 0:01:53.4]} 24... f6 {[%clk 0:01:38.1]} 25. f3
{[%clk 0:01:51.6]} 25... Kf7 {[%clk 0:01:38]} 26. Bf2 {[%clk 0:01:52.6]} 26...
Rc8 {[%clk 0:01:33.4]} 27. Be2 {[%clk 0:01:38.5]} 27... Rc6 {[%clk 0:01:27.3]}
28. g3 {[%clk 0:01:39.1]} 28... Rb6 {[%clk 0:01:23]} 29. R1d2 {[%clk 0:01:38.1]}
29... Rc6 {[%clk 0:01:04.3]} 30. f4 {[%clk 0:01:37.5]} 30... gxf4 {[%clk
0:01:05.9]} 31. gxf4 {[%clk 0:01:38.6]} 31... Ng6 {[%clk 0:01:07.5]} 32. Bh5
{[%clk 0:01:38.9]} 32... Kg7 {[%clk 0:01:03.6]} 33. f5 {[%clk 0:01:31.2]} 33...
Rxe4 {[%clk 0:00:56.6]} 34. Bxg6 {[%clk 0:01:29.4]} 34... Rc7 {[%clk 0:00:50]}
35. Kg2 {[%clk 0:01:25.4]} 35... Rxa4 {[%clk 0:00:48.9]} 36. Re2 {[%clk
0:01:23.3]} 36... Be7 {[%clk 0:00:39.7]} 37. Bg3 {[%clk 0:01:21.2]} 37... Rd7
{[%clk 0:00:37.1]} 38. Re6 {[%clk 0:01:18.2]} 38... Kf8 {[%clk 0:00:35.7]} 39.
Bxd6 {[%clk 0:01:09.5]} 39... Bxd6 {[%clk 0:00:36]} 40. Rxf6+ {[%clk 0:01:05.3]}
40... Kg7 {[%clk 0:00:32.1]} 41. Rfxd6 {[%clk 0:01:05.5]} 41... Rxd6 {[%clk
0:00:33.6]} 42. Rxd6 {[%clk 0:01:07.4]} 42... b5 {[%clk 0:00:34.9]} 43. Rc6
{[%clk 0:01:02.3]} 43... Ra2 {[%clk 0:00:32.8]} 44. h4 {[%clk 0:01:02]} 44...
Rxb2+ {[%clk 0:00:33.1]} 45. Kg3 {[%clk 0:01:03.3]} 45... a5 {[%clk 0:00:33.7]}
46. h5 {[%clk 0:01:04.6]} 46... Rb3 {[%clk 0:00:32.1]} 47. f6+ {[%clk
0:01:05.9]} 47... Kf8 {[%clk 0:00:32.1]} 48. Rc8# {[%clk 0:01:07.1]} 1-0

[Event "*** Titled Tuesday Blitz"]
[Site "Chess.com"]
[Date "2019.04.02"]
[Round "5"]
[White "PotapovaM"]
[Black "Kimster98"]
[Result "1/2-1/2"]
[WhiteElo "2443"]
[BlackElo "2597"]
[TimeControl "180+2"]
[EndTime "15:03:30 PDT"]
[Termination "Game drawn by repetition"]

1. d4 {[%clk 0:03:01.9]} 1... Nf6 {[%clk 0:02:59.5]} 2. c4 {[%clk 0:03:00.5]}
2... e6 {[%clk 0:02:59.9]} 3. Nf3 {[%clk 0:03:01.2]} 3... b6 {[%clk 0:03:00.4]}
4. a3 {[%clk 0:03:02.3]} 4... Bb7 {[%clk 0:03:01.8]} 5. Nc3 {[%clk 0:03:03.6]}
5... Ne4 {[%clk 0:03:03.4]} 6. Nxe4 {[%clk 0:03:05.1]} 6... Bxe4 {[%clk
0:03:05.3]} 7. Nd2 {[%clk 0:03:07]} 7... Bb7 {[%clk 0:03:06.8]} 8. e4 {[%clk
0:03:08.7]} 8... g6 {[%clk 0:03:08.3]} 9. Bd3 {[%clk 0:02:49.6]} 9... Bg7 {[%clk
0:03:08.8]} 10. Nf3 {[%clk 0:02:50.4]} 10... O-O {[%clk 0:03:08.5]} 11. O-O
{[%clk 0:02:50.9]} 11... d6 {[%clk 0:03:09.8]} 12. b4 {[%clk 0:02:40]} 12... c5
{[%clk 0:03:02.7]} 13. bxc5 {[%clk 0:02:23.7]} 13... bxc5 {[%clk 0:02:44.7]} 14.
Rb1 {[%clk 0:02:24.2]} 14... Qc7 {[%clk 0:02:38]} 15. Qb3 {[%clk 0:02:12.2]}
15... Bc8 {[%clk 0:02:39]} 16. dxc5 {[%clk 0:01:40.2]} 16... dxc5 {[%clk
0:02:37.2]} 17. Be3 {[%clk 0:01:34.9]} 17... Nd7 {[%clk 0:02:27.9]} 18. Qa4
{[%clk 0:01:19]} 18... Ne5 {[%clk 0:02:13.9]} 19. Nxe5 {[%clk 0:01:19.2]} 19...
Bxe5 {[%clk 0:02:15.8]} 20. g3 {[%clk 0:01:18.1]} 20... Bd4 {[%clk 0:02:09.5]}
21. Bf4 {[%clk 0:01:01.2]} 21... Be5 {[%clk 0:02:06.9]} 22. Bxe5 {[%clk
0:00:53.6]} 22... Qxe5 {[%clk 0:02:08.8]} 23. Qc6 {[%clk 0:00:54.8]} 23... Rb8
{[%clk 0:02:05.6]} 24. Rxb8 {[%clk 0:00:49.6]} 24... Qxb8 {[%clk 0:02:07.5]} 25.
Qxc5 {[%clk 0:00:51]} 25... Rd8 {[%clk 0:02:09]} 26. Be2 {[%clk 0:00:46.3]}
26... Qb2 {[%clk 0:02:06.8]} 27. Bf3 {[%clk 0:00:45.6]} 27... Qc3 {[%clk
0:01:56.4]} 28. Qc7 {[%clk 0:00:43.5]} 28... Re8 {[%clk 0:01:53.1]} 29. Kg2
{[%clk 0:00:39.4]} 29... e5 {[%clk 0:01:53.8]} 30. Qc6 {[%clk 0:00:20]} 30...
Rd8 {[%clk 0:01:50.5]} 31. Qf6 {[%clk 0:00:14.9]} 31... Re8 {[%clk 0:01:38.1]}
32. Qc6 {[%clk 0:00:15.5]} 32... Rd8 {[%clk 0:01:33.2]} 33. Qf6 {[%clk
0:00:16.3]} 33... Re8 {[%clk 0:01:34.7]} 34. Qc6 {[%clk 0:00:17.4]} 34... Rf8
{[%clk 0:01:36.2]} 35. Qf6 {[%clk 0:00:10.3]} 35... Be6 {[%clk 0:01:30.9]} 36.
Rd1 {[%clk 0:00:05.2]} 36... Bxc4 {[%clk 0:01:28.3]} 37. h4 {[%clk 0:00:05.5]}
37... h5 {[%clk 0:01:04.2]} 38. Bxh5 {[%clk 0:00:03.4]} 38... gxh5 {[%clk
0:01:06.1]} 39. Qg5+ {[%clk 0:00:04.5]} 39... Kh7 {[%clk 0:01:07.5]} 40. Qxh5+
{[%clk 0:00:05.7]} 40... Kg7 {[%clk 0:01:08.9]} 41. Qg5+ {[%clk 0:00:07]} 41...
Kh7 {[%clk 0:01:10.4]} 42. Qh5+ {[%clk 0:00:05.7]} 42... Kg7 {[%clk 0:01:11.7]}
43. Qg5+ {[%clk 0:00:07.2]} 43... Kh7 {[%clk 0:01:13.2]} 44. Qh5+ {[%clk
0:00:04.8]} 44... Kg7 {[%clk 0:01:14.6]} 45. Qg5+ {[%clk 0:00:06.1]} 45... Kh7
{[%clk 0:01:16]} 46. Qh5+ {[%clk 0:00:07.6]} 46... Kg7 {[%clk 0:01:17.5]} 47.
Qg5+ {[%clk 0:00:09.3]} 47... Kh7 {[%clk 0:01:19]} 48. Qh5+ {[%clk 0:00:10.9]}
1/2-1/2